fUSD/lending_fUSD_20240105
["ID","MTS","AMOUNT","RATE_DAILY","PERIOD"]
[310289956,1704463878768,-500.0,0.00030684,2]
[310289957,1704463878780,-500.0,0.00030684,2]
[310289958,1704463878789,-500.0,0.00030684,2]
[310289959,1704463878799,-533.01156799,0.00030684,2]
[310289960,1704463878808,-528.01,0.00030684,2]
[310289961,1704463878818,-500.0,0.00030684,2]
[310289962,1704463878827,-500.0,0.00030684,2]
[310289963,1704463878837,-500.0,0.00030684,2]
[310289964,1704463878847,-500.0,0.00030684,2]
[310289965,1704463878856,-500.0,0.00030684,2]
[310289966,1704463878865,-500.0,0.00030684,2]
[310289967,1704463878874,-500.0,0.00030684,2]
[310289968,1704463878884,-609.91,0.00030684,2]
[310289969,1704463878894,-500.0,0.00030684,2]
[310289970,1704463878904,-500.0,0.00030684,2]
[310289971,1704463878912,-3164.14,0.00030684,2]
[310289972,1704463878922,-500.0,0.00030684,2]
[310289973,1704463878931,-500.0,0.00030684,2]
[310289974,1704463878940,-500.0,0.00030684,2]
[310289975,1704463878950,-500.0,0.00030684,2]
[310289976,1704463878959,-500.0,0.00030684,2]
[310289977,1704463878968,-500.0,0.00030684,2]
[310289978,1704463878977,-767.51,0.00030684,2]
[310289979,1704463878986,-500.0,0.00030684,2]
[310289980,1704463878996,-500.0,0.00030684,2]
[310289981,1704463879004,-500.0,0.00030684,2]
[310289982,1704463879013,-500.0,0.00030684,2]
[310289983,1704463879023,-500.0,0.00030684,2]
[310289984,1704463879032,-631.53557245,0.00030684,2]
[310289985,1704463879041,-500.0,0.00030684,2]
[310289986,1704463879050,-500.0,0.00030684,2]
[310289987,1704463879060,-500.0,0.00030684,2]
[310289988,1704463879069,-500.0,0.00030684,2]
[310289989,1704463879079,-500.0,0.00030684,2]
[310289990,1704463879088,-500.0,0.00030684,2]
[310289991,1704463879098,-500.0,0.00030684,2]
[310289992,1704463879108,-588.01301945,0.00030684,2]
[310289993,1704463879117,-572.23,0.00030684,2]
[310289994,1704463879127,-500.0,0.00030684,2]
[310289995,1704463879137,-500.0,0.00030684,2]
[310289996,1704463879147,-513.1489206,0.00030684,2]
[310289997,1704463879156,-539.97743451,0.00030684,2]
[310289998,1704463879167,-500.0,0.00030684,2]
[310289999,1704463879178,-1043.05,0.00030684,2]
[310290000,1704463879187,-500.0,0.00030684,2]
[310290001,1704463879197,-500.0,0.00030684,2]
[310290002,1704463879206,-663.96,0.00030684,2]
[310290003,1704463879217,-361.0140138,0.00030684,2]
[310290004,1704463879227,-500.0,0.00030684,2]
[310290005,1704463879236,-500.0,0.00030684,2]
[310290006,1704463879246,-969.42,0.00030684,2]
[310290007,1704463879256,-500.0,0.00030684,2]
[310290008,1704463879266,-500.0,0.00030684,2]
[310290009,1704463879276,-500.0,0.00030684,2]
[310290010,1704463879285,-500.0,0.00030684,2]
[310290011,1704463879294,-524.89070798,0.00030684,2]
[310290012,1704463879303,-500.0,0.00030684,2]
[310290013,1704463879313,-522.1348154,0.00030684,2]
[310290014,1704463879323,-500.0,0.00030684,2]
[310290015,1704463879333,-951.95,0.00030684,2]
[310290016,1704463879343,-500.0,0.00030684,2]
[310290017,1704463879352,-446.53400308,0.00030684,2]
[310290018,1704463879362,-500.0,0.00030684,2]
[310290019,1704463879371,-500.0,0.00030684,2]
[310290020,1704463879379,-500.0,0.00030684,2]
[310290021,1704463879389,-500.0,0.00030684,2]
[310290022,1704463879398,-529.97169954,0.00030684,2]
[310290023,1704463879408,-500.0,0.00030684,2]
[310290024,1704463879417,-795.33,0.00030684,2]
[310290025,1704463879426,-500.0,0.00030684,2]
[310290026,1704463879436,-585.0,0.00030684,2]
[310290027,1704463879447,-500.0,0.00030684,2]
[310290028,1704463879457,-500.0,0.00030684,2]
[310290029,1704463879467,-500.0,0.00030684,2]
[310290030,1704463879476,-500.0,0.00030684,2]
[310290031,1704463879486,-500.0,0.00030684,2]
[310290032,1704463879496,-500.0,0.00030684,2]
[310290033,1704463879505,-500.0,0.00030684,2]
[310290034,1704463879515,-151.02669568,0.00030684,2]
[310290035,1704463879526,-500.0,0.00030684,2]
[310290036,1704463879609,-500.0,0.00030684,2]
[310290037,1704463879619,-500.0,0.00030684,2]
[310290038,1704463879630,-500.0,0.00030684,2]
[310290039,1704463879639,-500.0,0.00030684,2]
[310290040,1704463879648,-500.0,0.00030684,2]
[310290041,1704463879657,-505.51763226,0.00030684,2]
[310290042,1704463879667,-535.25,0.00030684,2]
[310290043,1704463879676,-573.11,0.00030684,2]
[310290044,1704463879685,-500.0,0.00030684,2]
[310290045,1704463879695,-500.0,0.00030684,2]
[310290046,1704463879705,-525.09216967,0.00030684,2]
[310290047,1704463879715,-500.0,0.00030684,2]
[310290048,1704463879725,-500.0,0.00030684,2]
[310290049,1704463879735,-510.85430983,0.00030684,2]
[310290050,1704463879746,-1278.92,0.00030684,2]
[310290051,1704463879755,-500.0,0.00030684,2]
[310290052,1704463879764,-500.0,0.00030684,2]
[310290053,1704463879773,-522.9,0.00030684,2]
[310290054,1704463879783,-1115.46,0.00030684,2]
[310290055,1704463879792,-500.0,0.00030684,2]
[310290056,1704463879802,-500.0,0.00030684,2]
[310290057,1704463879811,-500.0,0.00030684,2]
[310290058,1704463879820,-500.0,0.00030684,2]
[310290059,1704463879830,-500.0,0.00030684,2]
[310290060,1704463879839,-389.47697605,0.00030684,2]
[310290061,1704463879848,-500.0,0.00030684,2]
[310290062,1704463879858,-503.15,0.00030684,2]
[310290063,1704463879867,-317.74814953,0.00030684,2]
[310290064,1704463879877,-500.0,0.00030684,2]
[310290065,1704463879887,-562.23116285,0.00030684,2]
[310290066,1704463879897,-535.54117499,0.00030684,2]
[310290067,1704463879908,-500.0,0.00030684,2]
[310290068,1704463879917,-438.45001575,0.00030684,2]
[310290069,1704463879930,-500.0,0.00030684,2]
[310290070,1704463879940,-500.0,0.00030684,2]
[310290071,1704463879950,-500.0,0.00030684,2]
[310290072,1704463879959,-898.64,0.00030684,2]
[310290073,1704463879968,-500.0,0.00030684,2]
[310290074,1704463879978,-500.0,0.00030684,2]
[310290075,1704463879988,-500.0,0.00030684,2]
[310290076,1704463879998,-523.89379048,0.00030684,2]
[310290077,1704463880008,-500.0,0.00030684,2]
[310290078,1704463880017,-500.0,0.00030684,2]
[310290079,1704463880027,-500.0,0.00030684,2]
[310290080,1704463880036,-2197.46,0.00030684,2]
[310290081,1704463880045,-500.0,0.00030684,2]
[310290082,1704463880055,-500.0,0.00030684,2]
[310290083,1704463880064,-519.93728559,0.00030684,2]
[310290084,1704463880073,-1050.63,0.00030684,2]
[310290085,1704463880083,-569.39727863,0.00030684,2]
[310290086,1704463880092,-500.0,0.00030684,2]
[310290087,1704463880101,-500.0,0.00030684,2]
[310290088,1704463880111,-500.0,0.00030684,2]
[310290089,1704463880120,-500.0,0.00030684,2]
[310290090,1704463880130,-512.25,0.00030684,2]
[310290091,1704463880139,-500.0,0.00030684,2]
[310290092,1704463880149,-500.0,0.00030684,2]
[310290093,1704463880158,-500.0,0.00030684,2]
[310290094,1704463880168,-500.0,0.00030684,2]
[310290095,1704463880178,-598.04935383,0.00030684,2]
[310290096,1704463880187,-244.00915485,0.00030684,2]
[310290097,1704463880197,-500.0,0.00030684,2]
[310290098,1704463880207,-652.42,0.00030684,2]
[310290099,1704463880217,-500.0,0.00030684,2]
[310290100,1704463880226,-500.0,0.00030684,2]
[310290101,1704463880235,-500.96,0.00030684,2]
[310290102,1704463880245,-500.0,0.00030684,2]
[310290103,1704463880255,-500.0,0.00030684,2]
[310290104,1704463880264,-500.0,0.00030684,2]
[310290105,1704463880274,-500.0,0.00030684,2]
[310290106,1704463880283,-737.52,0.00030684,2]
[310290107,1704463880292,-500.0,0.00030684,2]
[310290108,1704463880302,-500.0,0.00030684,2]
[310290109,1704463880311,-500.00828965,0.00030684,2]
[310290110,1704463880321,-500.0,0.00030684,2]
[310290111,1704463880330,-500.0,0.00030684,2]
[310290112,1704463880340,-500.0,0.00030684,2]
[310290113,1704463880350,-500.0,0.00030684,2]
[310290114,1704463880359,-1408.67,0.00030684,2]
[310290115,1704463880369,-500.0,0.00030684,2]
[310290116,1704463880378,-500.0,0.00030684,2]
[310290117,1704463880387,-500.0,0.00030684,2]
[310290118,1704463880397,-256.33306975,0.00030684,2]
[310290119,1704463880407,-519.09,0.00030684,2]
[310290120,1704463880416,-360.51048717,0.00030684,2]
[310290121,1704463880426,-500.0,0.00030684,2]
[310290122,1704463880436,-500.0,0.00030684,2]
[310290123,1704463880446,-500.0,0.00030684,2]
[310290124,1704463880456,-500.0,0.00030684,2]
[310290125,1704463880466,-500.0,0.00030684,2]
[310290126,1704463880475,-560.91814583,0.00030684,2]
[310290127,1704463880485,-500.0,0.00030684,2]
[310290128,1704463880494,-500.0,0.00030684,2]
[310290129,1704463880504,-500.0,0.00030684,2]
[310290130,1704463880513,-500.0,0.00030684,2]
[310290131,1704463880523,-500.0,0.00030684,2]
[310290132,1704463880533,-1017.17,0.00030684,2]
[310290133,1704463880542,-500.0,0.00030684,2]
[310290134,1704463880551,-314.70912629,0.00030684,2]
[310290135,1704463880561,-500.0,0.00030684,2]
[310290136,1704463880570,-500.0,0.00030684,2]
[310290137,1704463880579,-374.07168016,0.00030684,2]
[310290138,1704463880589,-500.0,0.00030684,2]
[310290139,1704463880600,-500.0,0.00030684,2]
[310290140,1704463880611,-536.41973218,0.00030684,2]
[310290141,1704463880620,-500.0,0.00030684,2]
[310290142,1704463880630,-500.0,0.00030684,2]
[310290143,1704463880639,-1228.15,0.00030684,2]
[310290144,1704463880650,-559.55025972,0.00030684,2]
[310290145,1704463880660,-500.0,0.00030684,2]
[310290146,1704463880670,-500.0,0.00030684,2]
[310290147,1704463880680,-500.0,0.00030684,2]
[310290148,1704463880692,-1193.22,0.00030684,2]
[310290149,1704463880702,-500.0,0.00030684,2]
[310290150,1704463880711,-500.0,0.00030684,2]
[310290151,1704463880721,-1080.22543914,0.00030684,2]
[310290152,1704463880734,-500.0,0.00030684,2]
[310290153,1704463880744,-1709.82,0.00030684,2]
[310290154,1704463880753,-500.0,0.00030684,2]
[310290155,1704463880763,-500.0,0.00030684,2]
[310290156,1704463880774,-500.0,0.00030684,2]
[310290157,1704463880783,-500.0,0.00030684,2]
[310290158,1704463880793,-500.0,0.00030684,2]
[310290159,1704463880803,-500.0,0.00030684,2]
[310290160,1704463880812,-521.26,0.00030684,2]
[310290161,1704463880822,-1009.32,0.00030684,2]
[310290162,1704463880831,-500.0,0.00030684,2]
[310290163,1704463880841,-769.11,0.00030684,2]
[310290164,1704463880850,-500.0,0.00030684,2]
[310290165,1704463880861,-500.0,0.00030684,2]
[310290166,1704463880871,-500.0,0.00030684,2]
[310290167,1704463880881,-500.0,0.00030684,2]
[310290168,1704463880890,-952.84,0.00030684,2]
[310290169,1704463880900,-500.0,0.00030684,2]
[310290170,1704463880909,-567.11615892,0.00030684,7]
[310290171,1704463880919,-500.0,0.00030684,2]
[310290172,1704463880928,-500.0,0.00030684,2]
[310290173,1704463880937,-634.11,0.00030684,2]
[310290174,1704463880947,-500.0,0.00030684,2]
[310290175,1704463880955,-500.0,0.00030684,2]
[310290176,1704463880966,-1188.9,0.00030684,2]
[310290177,1704463880975,-500.0,0.00030684,2]
[310290178,1704463880985,-500.0,0.00030684,2]
[310290179,1704463880994,-558.13,0.00030684,2]
[310290180,1704463881003,-773.34,0.00030684,2]
[310290181,1704463881013,-506.79465649,0.00030684,2]
[310290182,1704463881022,-500.0,0.00030684,2]
[310290183,1704463881033,-500.0,0.00030684,2]
[310290184,1704463881043,-500.0,0.00030684,2]
[310290185,1704463881052,-500.0,0.00030684,2]
[310290186,1704463881063,-881.16,0.00030684,2]
[310290187,1704463881073,-500.0,0.00030684,2]
[310290188,1704463881083,-500.0,0.00030684,2]
[310290189,1704463881093,-500.0,0.00030684,2]
[310290190,1704463881103,-500.0,0.00030684,2]
[310290191,1704463881112,-500.0,0.00030684,2]
[310290192,1704463881122,-589.01912658,0.00030684,2]
[310290193,1704463881131,-506.81175817,0.00030684,2]
[310290194,1704463881140,-500.0,0.00030684,2]
[310290195,1704463881150,-500.0,0.00030684,2]
[310290196,1704463881159,-1431.77,0.00030684,2]
[310290197,1704463881169,-500.0,0.00030684,2]
[310290198,1704463881178,-798.14,0.00030684,2]
[310290199,1704463881188,-500.0,0.00030684,2]
[310290200,1704463881198,-500.0,0.00030684,2]
[310290201,1704463881207,-2061.68,0.00030684,2]
[310290202,1704463881217,-500.0,0.00030684,2]
[310290203,1704463881226,-500.0,0.00030684,2]
[310290204,1704463881234,-909.7,0.00030684,2]
[310290205,1704463881244,-500.0,0.00030684,2]
[310290206,1704463881253,-500.0,0.00030684,2]
[310290207,1704463881262,-1481.56,0.00030684,2]
[310290208,1704463881273,-503.61718609,0.00030684,2]
[310290209,1704463881283,-500.0,0.00030684,2]
[310290210,1704463881293,-500.0,0.00030684,2]
[310290211,1704463881302,-500.0,0.00030684,2]
[310290212,1704463881311,-1575.41,0.00030684,2]
[310290213,1704463881321,-500.0,0.00030684,2]
[310290214,1704463881330,-500.0,0.00030684,2]
[310290215,1704463881339,-982.39,0.00030684,2]
[310290216,1704463881349,-500.0,0.00030684,2]
[310290217,1704463881357,-500.39,0.00030684,2]
[310290218,1704463881367,-500.0,0.00030684,2]
[310290219,1704463881376,-500.0,0.00030684,2]
[310290220,1704463881385,-500.0,0.00030684,2]
[310290221,1704463881394,-500.0,0.00030684,2]
[310290222,1704463881403,-500.0,0.00030684,2]
[310290223,1704463881412,-500.0,0.00030684,2]
[310290224,1704463881422,-500.0,0.00030684,2]
[310290225,1704463881431,-500.0,0.00030684,2]
[310290226,1704463881441,-656.28,0.00030684,2]
[310290227,1704463881451,-616.4,0.00030684,2]
[310290228,1704463881460,-500.0,0.00030684,2]
[310290229,1704463881470,-505.25247658,0.00030684,2]
[310290230,1704463881479,-500.0,0.00030684,2]
[310290231,1704463881489,-615.45,0.00030684,2]
[310290232,1704463881498,-534.96205649,0.00030684,2]
[310290233,1704463881507,-855.97,0.00030684,2]
[310290234,1704463881517,-815.67,0.00030684,2]
[310290235,1704463881527,-518.18905092,0.00030684,2]
[310290236,1704463881537,-500.0,0.00030684,2]
[310290237,1704463881547,-500.0,0.00030684,2]
[310290238,1704463881557,-596.34843779,0.00030684,2]
[310290239,1704463881567,-500.0,0.00030684,2]
[310290240,1704463881576,-914.92,0.00030684,2]
[310290241,1704463881586,-500.0,0.00030684,2]
[310290242,1704463881595,-759.49,0.00030684,2]
[310290243,1704463881605,-507.29639897,0.00030684,2]
[310290244,1704463881615,-612.52,0.00030684,2]
[310290245,1704463881626,-500.0,0.00030684,2]
[310290246,1704463881637,-500.0,0.00030684,2]
[310290247,1704463881647,-500.0,0.00030684,2]
[310290248,1704463881657,-638.72,0.00030684,2]
[310290249,1704463881667,-500.0,0.00030684,2]
[310290250,1704463881677,-500.0,0.00030684,2]
[310290251,1704463881686,-500.0,0.00030684,2]
[310290252,1704463881696,-500.0,0.00030684,2]
[310290253,1704463881705,-182.98361324,0.00030684,2]
[310290254,1704463881715,-500.0,0.00030684,2]
[310290255,1704463881725,-779.76,0.00030684,2]
[310290256,1704463881735,-500.0,0.00030684,2]
[310290257,1704463881744,-500.0,0.00030684,2]
[310290258,1704463881753,-500.0,0.00030684,2]
[310290259,1704463881767,-500.0,0.00030684,2]
[310290260,1704463881778,-1184.83,0.00030684,2]
[310290261,1704463881787,-1087.44,0.00030684,2]
[310290262,1704463881797,-547.36,0.00030684,2]
[310290263,1704463881807,-500.0,0.00030684,2]
[310290264,1704463881817,-190.82773027,0.00030684,2]
[310290265,1704463881827,-500.0,0.00030684,2]
[310290266,1704463881836,-500.0,0.00030684,2]
[310290267,1704463881846,-506.81125773,0.00030684,2]
[310290268,1704463881856,-908.56,0.00030684,2]
[310290269,1704463881866,-500.0,0.00030684,2]
[310290270,1704463881875,-500.0,0.00030684,2]
[310290271,1704463881884,-543.90261637,0.00030684,2]
[310290272,1704463881894,-5038.11,0.00030684,2]
[310290273,1704463881905,-500.0,0.00030684,2]
[310290274,1704463881915,-500.0,0.00030684,2]
[310290275,1704463881924,-500.0,0.00030684,2]
[310290276,1704463881934,-880.69,0.00030684,2]
[310290277,1704463881944,-884.22,0.00030684,2]
[310290278,1704463881954,-500.0,0.00030684,2]
[310290279,1704463881964,-500.0,0.00030684,2]
[310290280,1704463881974,-500.0,0.00030684,2]
[310290281,1704463881984,-500.0,0.00030684,2]
[310290282,1704463881994,-828.3,0.00030684,2]
[310290283,1704463882004,-500.0,0.00030684,2]
[310290284,1704463882014,-500.0,0.00030684,2]
[310290285,1704463882025,-385.80328923,0.00030684,2]
[310290286,1704463882035,-1954.72,0.00030684,2]
[310290287,1704463882045,-500.0,0.00030684,2]
[310290288,1704463882056,-500.0,0.00030684,2]
[310290289,1704463882065,-1200.04,0.00030684,2]
[310290290,1704463882075,-500.0,0.00030684,2]
[310290291,1704463882085,-500.0,0.00030684,2]
[310290292,1704463882094,-964.87,0.00030684,2]
[310290293,1704463882104,-500.0,0.00030684,2]
[310290294,1704463882113,-500.0,0.00030684,2]
[310290295,1704463882123,-1145.56,0.00030684,2]
[310290296,1704463882134,-500.0,0.00030684,2]
[310290297,1704463882144,-500.0,0.00030684,2]
[310290298,1704463882153,-625.39801999,0.00030684,2]
[310290299,1704463882163,-500.0,0.00030684,2]
[310290300,1704463882173,-794.58,0.00030684,2]
[310290301,1704463882183,-503.02601107,0.00030684,2]
[310290302,1704463882193,-534.82,0.00030684,2]
[310290303,1704463882202,-855.41,0.00030684,2]
[310290304,1704463882211,-511.71773684,0.00030684,2]
[310290305,1704463882221,-500.0,0.00030684,2]
[310290306,1704463882231,-500.0,0.00030684,2]
[310290307,1704463882243,-500.0,0.00030684,2]
[310290308,1704463882254,-773.85,0.00030684,2]
[310290309,1704463882265,-500.0,0.00030684,2]
[310290310,1704463882274,-500.0,0.00030684,2]
[310290311,1704463882284,-500.0,0.00030684,2]
[310290312,1704463882293,-286.06957754,0.00030684,2]
[310290313,1704463882304,-500.0,0.00030684,2]
[310290314,1704463882314,-1238.16,0.00030684,2]
[310290315,1704463882323,-500.0,0.00030684,2]
[310290316,1704463882333,-500.0,0.00030684,2]
[310290317,1704463882343,-500.0,0.00030684,2]
[310290318,1704463882354,-500.0,0.00030684,2]
[310290319,1704463882364,-500.0,0.00030684,2]
[310290320,1704463882373,-3690.73,0.00030684,2]
[310290321,1704463882383,-500.0,0.00030684,2]
[310290322,1704463882393,-500.0,0.00030684,2]
[310290323,1704463882402,-500.0,0.00030684,2]
[310290324,1704463882412,-500.0,0.00030684,2]
[310290325,1704463882422,-500.0,0.00030684,2]
[310290326,1704463882431,-500.0,0.00030684,2]
[310290327,1704463882442,-692.03,0.00030684,2]
[310290328,1704463882452,-559.53,0.00030684,2]
[310290329,1704463882462,-497.24835095,0.00030684,2]
[310290330,1704463882473,-500.0,0.00030684,2]
[310290331,1704463882483,-623.28779135,0.00030684,2]
[310290332,1704463882493,-500.0,0.00030684,2]
[310290333,1704463882503,-500.0,0.00030684,2]
[310290334,1704463882512,-500.0,0.00030684,2]
[310290335,1704463882522,-500.0,0.00030684,2]
[310290336,1704463882533,-500.0,0.00030684,2]
[310290337,1704463882543,-500.0,0.00030684,2]
[310290338,1704463882553,-500.0,0.00030684,2]
[310290339,1704463882563,-654.46,0.00030684,2]
[310290340,1704463882573,-954.52,0.00030684,2]
[310290341,1704463882583,-763.63,0.00030684,2]
[310290342,1704463882593,-511.23,0.00030684,2]
[310290343,1704463882604,-876.69,0.00030684,2]
[310290344,1704463882618,-1216.82,0.00030684,2]
[310290345,1704463882628,-500.0,0.00030684,2]
[310290346,1704463882637,-300.0,0.00030684,2]
[310290347,1704463882649,-500.0,0.00030684,2]
[310290348,1704463882659,-500.0,0.00030684,2]
[310290349,1704463882668,-511.85416267,0.00030684,2]
[310290350,1704463882678,-1777.29,0.00030684,2]
[310290351,1704463882688,-500.0,0.00030684,2]
[310290352,1704463882699,-500.0,0.00030684,2]
[310290353,1704463882709,-813.3,0.00030684,2]
[310290354,1704463882719,-1082.13,0.00030684,2]
[310290355,1704463882729,-677.81,0.00030684,2]
[310290356,1704463882739,-500.0,0.00030684,2]
[310290357,1704463882750,-1325.23,0.00030684,2]
[310290358,1704463882760,-500.0,0.00030684,2]
[310290359,1704463882770,-500.0,0.00030684,2]
[310290360,1704463882780,-502.08988428,0.00030684,2]
[310290361,1704463882791,-500.0,0.00030684,2]
[310290362,1704463882801,-500.0,0.00030684,2]
[310290363,1704463882811,-500.0,0.00030684,2]
[310290364,1704463882821,-500.0,0.00030684,2]
[310290365,1704463882832,-3298.71,0.00030684,2]
[310290366,1704463882841,-500.0,0.00030684,2]
[310290367,1704463882851,-500.0,0.00030684,2]
[310290368,1704463882861,-500.0,0.00030684,2]
[310290369,1704463882870,-798.97,0.00030684,2]
[310290370,1704463882880,-500.0,0.00030684,2]
[310290371,1704463882890,-570.93719163,0.00030684,2]
[310290372,1704463882899,-500.0,0.00030684,2]
[310290373,1704463882910,-900.8,0.00030684,2]
[310290374,1704463882919,-500.0,0.00030684,2]
[310290375,1704463882929,-1067.2,0.00030684,2]
[310290376,1704463882938,-509.8539834,0.00030684,2]
[310290377,1704463882948,-517.71410736,0.00030684,2]
[310290378,1704463882958,-2016.59,0.00030684,2]
[310290379,1704463882968,-752.23,0.00030684,2]
[310290380,1704463882979,-500.0,0.00030684,2]
[310290381,1704463882989,-811.52,0.00030684,2]
[310290382,1704463883000,-500.0,0.00030684,2]
[310290383,1704463883010,-1251.67,0.00030684,2]
[310290384,1704463883020,-500.0,0.00030684,2]
[310290385,1704463883032,-500.0,0.00030684,2]
[310290386,1704463883041,-500.0,0.00030684,2]
[310290387,1704463883050,-500.0,0.00030684,2]
[310290388,1704463883059,-8654.29,0.00030684,2]
[310290389,1704463883069,-500.0,0.00030684,2]
[310290390,1704463883079,-500.0,0.00030684,2]
[310290391,1704463883089,-500.0,0.00030684,2]
[310290392,1704463883099,-510.30771273,0.00030684,2]
[310290393,1704463883109,-500.0,0.00030684,2]
[310290394,1704463883119,-500.0,0.00030684,2]
[310290395,1704463883129,-500.0,0.00030684,2]
[310290396,1704463883138,-909.25,0.00030684,2]
[310290397,1704463883148,-500.0,0.00030684,2]
[310290398,1704463883158,-511.88,0.00030684,2]
[310290399,1704463883167,-952.02,0.00030684,2]
[310290400,1704463883177,-963.43,0.00030684,2]
[310290401,1704463883188,-190.13103665,0.00030684,2]
[310290402,1704463883198,-500.0,0.00030684,2]
[310290403,1704463883208,-500.0,0.00030684,2]
[310290404,1704463883218,-5000.0,0.00030684,2]
[310290405,1704463883228,-1293.97,0.00030684,2]
[310290406,1704463883238,-2290.16,0.00030684,2]
[310290407,1704463883249,-575.54871973,0.00030684,2]
[310290408,1704463883259,-5023.74,0.00030684,2]
[310290409,1704463883269,-286.76749566,0.00030684,2]
[310290410,1704463883280,-1316.73,0.00030684,2]
[310290411,1704463883290,-960.97,0.00030684,2]
[310290412,1704463883300,-500.0,0.00030684,2]
[310290413,1704463883310,-500.0,0.00030684,2]
[310290414,1704463883320,-500.0,0.00030684,2]
[310290415,1704463883330,-500.0,0.00030684,2]
[310290416,1704463883339,-500.0,0.00030684,2]
[310290417,1704463883349,-500.0,0.00030684,2]
[310290418,1704463883359,-500.0,0.00030684,2]
[310290419,1704463883369,-500.0,0.00030684,2]
[310290420,1704463883379,-500.0,0.00030684,2]
[310290421,1704463883389,-500.0,0.00030684,2]
[310290422,1704463883399,-2888.44,0.00030684,2]
[310290423,1704463883409,-500.0,0.00030684,2]
[310290424,1704463883420,-453.57606428,0.00030684,2]
[310290425,1704463883430,-500.0,0.00030684,2]
[310290426,1704463883440,-780.49,0.00030684,2]
[310290427,1704463883450,-213.57,0.00030684,2]
[310290428,1704463883460,-500.0,0.00030684,2]
[310290429,1704463883471,-873.53,0.00030684,2]
[310290430,1704463883481,-500.0,0.00030684,2]
[310290431,1704463883492,-500.0,0.00030684,2]
[310290432,1704463883502,-840.85,0.00030684,2]
[310290433,1704463883512,-500.0,0.00030684,2]
[310290434,1704463883522,-552.42,0.00030684,2]
[310290435,1704463883535,-500.0,0.00030684,2]
[310290436,1704463883547,-500.0,0.00030684,2]
[310290437,1704463883557,-500.0,0.00030684,2]
[310290438,1704463883568,-17362.55,0.00030684,2]
[310290439,1704463883578,-2346.84,0.00030684,2]
[310290440,1704463883588,-1000.0,0.00030684,2]
[310290441,1704463883598,-4809.34,0.00030684,2]
[310290442,1704463883609,-500.0,0.00030684,2]
[310290443,1704463883619,-607.5,0.00030684,2]
[310290444,1704463883628,-619.58,0.00030684,2]
[310290445,1704463883639,-539.06,0.00030684,2]
[310290446,1704463883649,-500.0,0.00030684,2]
[310290447,1704463883659,-500.0,0.00030684,2]
[310290448,1704463883669,-500.0,0.00030684,2]
[310290449,1704463883679,-2724.92,0.00030684,2]
[310290450,1704463883689,-500.0,0.00030684,2]
[310290451,1704463883699,-500.0,0.00030684,2]
[310290452,1704463883710,-500.0,0.00030684,2]
[310290453,1704463883720,-500.0,0.00030684,2]
[310290454,1704463883730,-9463.24,0.00030684,2]
[310290455,1704463883741,-500.0,0.00030684,2]